Cogmind - Beta 13 @@@ ROGUE MODE // 2024.04.10 @ 16:32:13 Player: H3-RMN Result: Destroyed by Y-45 Defender with Heavy Assault Rifle Performance ------------- Evolutions (2) 1000 Regions Visited (9) 1800 Robots Destroyed (43) 215 Value Destroyed (1809) 1809 Prototype IDs (24) 480 Alien Tech Used (0) 0 Bonus (717) 717 TOTAL SCORE: 6021 Bonus ------- High Alert Combat Kills 17 Entered Garrisons 400 Aligned with FarCom 300 Cogmind --------- Core Integrity 0/550 Matter 284/300 Energy 40/100 System Corruption 0% Temperature Cool (9) Movement Core (50) Location -8/Materials Parts ------- > --- POWER (1) -------- (None) > --- PROPULSION (2) --- (None) > --- UTILITY (6) ------ Advanced Visual Processing Unit Transport Network Coupler Melee Analysis Suite Hacking Suite Hacking Suite System Shield > --- WEAPON (2) ------- (None) > --- INVENTORY (5) ---- Micro Nuclear Core Micro Nuclear Core Improved Hacking Suite PSU Rigger Plasma Cutter Peak State ------------ > --- POWER ------------ Ion Engine > --- PROPULSION ------- Potential Leg Potential Leg > --- UTILITY ---------- Advanced Weight Redist. System Advanced Visual Processing Unit Improved Sensor Array Transport Network Coupler Melee Analysis Suite PSU Rigger > --- WEAPON ----------- Light Assault Rifle Rocket Launcher > --- INVENTORY -------- Light Ion Engine Improved Hacking Suite Plasma Cutter Katana [Rating: 46] Favorites ----------- Power Ion Engine Engine Ion Engine Propulsion Potential Leg Treads Light Treads Leg Potential Leg Utility Targeting Computer Device Advanced Weight Redist. System Processor Targeting Computer Hackware Hacking Suite Protection Light Armor Plating Weapon Small Laser Energy Gun Small Laser Ballistic Gun Light Assault Rifle Launcher Rocket Launcher Special Weapon Plasma Cutter Slashing Weapon Katana Build | -11 -10 -10 -10 -9 -8 -8 -8 -8 -8 ------- Run | Yrd Mat Min Exi Min Mat Gar Mat Gar Mat Slots Evolved 4 | . . . . . 4 . . . . Power . | . . . . . . . . . . Propulsion . | . . . . . . . . . . Utility 4 | . . . . . 4 . . . . Weapon . | . . . . . . . . . . Parts Attached 54 | 4 . 3 2 . 2 9 8 12 14 Power 2 | . . . . . . . 2 . . Engine 2 | . . . . . . . 2 . . Core . | . . . . . . . . . . Reactor . | . . . . . . . . . . Propulsion 6 | 2 . 1 2 . . . . . 1 Treads 3 | 2 . 1 . . . . . . . Leg 3 | . . . 2 . . . . . 1 Wheel . | . . . . . . . . . . Hover . | . . . . . . . . . . Flight . | . . . . . . . . . . Utility 25 | . . 2 . . 2 3 4 6 8 Device 9 | . . . . . 1 . 2 3 3 Storage . | . . . . . . . . . . Processor 8 | . . 2 . . 1 2 1 . 2 Hackware 3 | . . . . . . . . . 3 Protection 5 | . . . . . . 1 1 3 . Artifact . | . . . . . . . . . . Weapon 21 | 2 . . . . . 6 2 6 5 Energy Gun 3 | 2 . . . . . . . . 1 Energy Cannon . | . . . . . . . . . . Ballistic Gun 7 | . . . . . . 4 . 2 1 Ballistic Cannon . | . . . . . . . . . . Launcher 4 | . . . . . . . 1 2 1 Special Weapon 3 | . . . . . . . 1 2 . Impact Weapon . | . . . . . . . . . . Slashing Weapon 4 | . . . . . . 2 . . 2 Piercing Weapon . | . . . . . . . . . . Special Melee Weapon . | . . . . . . . . . . Unidentified Prototypes 1 | . . . . . . . . . 1 Parts Lost 9 | . . . . . . 2 1 . 6 Power 1 | . . . . . . . . . 1 Propulsion 2 | . . . . . . . . . 2 Utility 4 | . . . . . . 1 . . 3 Weapon 2 | . . . . . . 1 1 . . Highest Loss Streak 2 | . . . . . . 1 1 . 2 To Critical Strikes . | . . . . . . . . . . Average Slot Usage (%) 78 | . 57 81 85 85 69 71 83 90 81 Engine 1 | . . . . . . . 5 9 2 Treads 4 | . 28 28 19 . . . . . . Leg 15 | . . . 8 28 18 18 18 18 17 Device 5 | . . . . . 7 1 7 9 8 Processor 31 | . . 24 28 28 25 36 38 36 33 Protection 2 | . . . . . . 3 6 9 . Energy Gun 10 | . 28 28 28 28 18 2 . . 4 Ballistic Gun 2 | . . . . . . 4 . 3 4 Slashing Weapon 3 | . . . . . . 5 6 . 8 Naked Turns . | . . . . . . . . . . Heaviest Build 13 | 2 2 2 2 2 3 3 12 12 13 Greatest Support 12 | 3 3 3 3 3 3 3 12 12 12 Greatest Overweight (x) 1 | . . . . . . . . . 1 Average Overweight (x) . | . . . . . . . . . . Largest Inventory Capacity 5 | 5 5 5 5 5 5 5 5 5 5 Average Capacity 5 | 5 5 5 5 5 5 5 5 5 5 Most Carried 5 | 2 . 5 5 5 5 5 5 5 5 Average Carried 4 | . . 4 4 5 5 5 4 4 4 Final Capacity 5 | 5 5 5 5 5 5 5 5 5 5 Final Carried 5 | . . 5 5 5 5 5 3 5 5 Class Distribution -------------------- 57% | Mutant 37% | Scavenger-Scout 4% | Scavenger-Mutant Dominant Class ---------------- Mutant | -10/Materials Mutant | -10/Mines Mutant | -10/Exiles Mutant | -9/Mines Mutant | -8/Materials Mutant | -8/Garrison Scavenger-Scout | -8/Materials Scavenger-Scout | -8/Garrison Scavenger-Scout | -8/Materials Resources | -11 -10 -10 -10 -9 -8 -8 -8 -8 -8 ----------- Run | Yrd Mat Min Exi Min Mat Gar Mat Gar Mat Matter Collected 897 | 175 . 95 . . 40 176 76 126 209 Remotely . | . . . . . . . . . . Salvage Created 1558 | . . 308 . . 59 371 351 129 340 Parts 96 | . . 19 . . 4 18 17 12 26 Haulers Intercepted 3 | . . . . . . . 1 . 2 Recyclers Shooed . | . . . . . . . . . . Parts Field Recycled . | . . . . . . . . . . Retrieved Matter . | . . . . . . . . . . Parts Self-Destructed . | . . . . . . . . . . Prevented . | . . . . . . . . . . Kills | -11 -10 -10 -10 -9 -8 -8 -8 -8 -8 ------- Run | Yrd Mat Min Exi Min Mat Gar Mat Gar Mat Combat Hostiles Destroyed 38 | . . 10 . . 1 7 6 7 7 Melee 12 | . . . . . . 4 4 . 4 Guns 14 | . . 10 . . 1 3 . . . AOE 12 | . . . . . . . 2 7 3 Classes Destroyed 7 | . . 3 . . 1 . 2 . 1 Worker 1 | . . 1 . . . . . . . Hauler 3 | . . . . . . . 1 . 2 Operator 1 | . . . . . . . . . 1 Swarmer 16 | . . 6 . . . . . 7 3 Grunt 13 | . . 4 . . . 3 4 . 2 Sentry 8 | . . . . . 1 4 1 . 2 Hunter 1 | . . . . . . . 1 . . Best Kill Streak 5 | . . 3 . . 1 3 5 4 3 Combat Bots Only 4 | . . 3 . . 1 3 3 4 3 Max Kills in Single Turn 2 | . . 1 . . 1 1 2 2 2 Gunslinging . | . . . . . . . . . . Exploded 2 | . . . . . . . 2 2 2 Melee 1 | . . . . . . 1 1 . 1 Uniques/NPCs Destroyed . | . . . . . . . . . . Combat | -11 -10 -10 -10 -9 -8 -8 -8 -8 -8 -------- Run | Yrd Mat Min Exi Min Mat Gar Mat Gar Mat Hostile Shots Fired 199 | . . 39 . . 2 62 29 14 53 Missed 50 | . . 10 . . . 13 7 6 14 Damage Taken 2229 | . . 307 . . 31 723 371 135 662 Core 637 | . . 84 . . 14 213 123 8 195 Absorbed by Shields . | . . . . . . . . . . Redirected to Shielding 37 | . . . . . . 14 23 . . Core Remaining (%) 83 | 100 . . . 66 . . . . . Volleys Fired 80 | . . 30 . . 2 28 2 16 2 Largest 2 | . . 2 . . 2 2 1 1 1 Hottest 80 | . . 80 . . 80 80 33 33 33 Shots Fired 120 | . . 60 . . 4 36 2 16 2 Gun 100 | . . 60 . . 4 36 . . . Cannon . | . . . . . . . . . . Launcher 7 | . . . . . . . 1 4 2 Special 13 | . . . . . . . 1 12 . Kinetic 32 | . . . . . . 32 . . . Thermal 81 | . . 60 . . 4 4 1 12 . Explosive 7 | . . . . . . . 1 4 2 Electromagnetic . | . . . . . . . . . . Robot Hit Streak 37 | . . 15 . . 5 34 36 37 3 Robot Miss Streak 3 | . . 3 . . . . . 3 . Penetration Max . | . . . . . . . . . . Secondary Targets 2 | . . 2 . . . . . . . Max Gunslinging Chain 1 | . . 1 . . . . . . . Shots Hit Robots 129 | . . 41 . . 3 46 8 11 20 Core Hits 59 | . . 18 . . 2 12 9 8 10 Critical Kills . | . . . . . . . . . . Critical Parts Destroyed . | . . . . . . . . . . Critical Strikes 3 | . . . . . . 1 . . 2 Sever 3 | . . . . . . 1 . . 2 Melee Attacks 61 | . . . . . . 28 11 . 22 Impact . | . . . . . . . . . . Slashing 61 | . . . . . . 28 11 . 22 Piercing . | . . . . . . . . . . Sneak Attacks 5 | . . . . . . 1 2 . 2 Combat Hostiles 2 | . . . . . . 1 1 . . Follow-up Attacks . | . . . . . . . . . . Damage Inflicted 3190 | . . 459 . . 30 1025 359 475 842 Guns 907 | . . 459 . . 30 418 . . . Cannons . | . . . . . . . . . . Explosions 608 | . . . . . . . 81 366 161 Melee 1556 | . . . . . . 607 268 . 681 Ramming . | . . . . . . . . . . Kinetic 418 | . . . . . . 418 . . . Thermal 608 | . . 459 . . 30 . 10 109 . Explosive 608 | . . . . . . . 81 366 161 Electromagnetic . | . . . . . . . . . . Impact . | . . . . . . . . . . Slashing 1556 | . . . . . . 607 268 . 681 Piercing . | . . . . . . . . . . Highest Corruption . | . . . . . . . . . . Average Corruption . | . . . . . . . . . . Corruption Purged . | . . . . . . . . . . Corruption Blocked 7 | . . . . . . 7 . . . Overload Shots . | . . . . . . . . . . Overflow Damage 120 | . . . . . . 36 . 26 58 Projectiles 4 | . . . . . . . . 4 . Explosions 22 | . . . . . . . . 22 . Melee 94 | . . . . . . 36 . . 58 Knockbacks . | . . . . . . . . . . Impact . | . . . . . . . . . . Kinetic . | . . . . . . . . . . Secondary . | . . . . . . . . . . Self-Inflicted Damage 146 | . . . . . . . . 72 74 Shots 4 | . . . . . . . . 2 2 Rammed . | . . . . . . . . . . Targets Rammed . | . . . . . . . . . . Kicked . | . . . . . . . . . . Crushed . | . . . . . . . . . . Highest Temperature 100 | . . 100 . . 25 21 . 9 1 Average Temperature 27 | . . 28 . . 16 16 . 5 1 Received Heat Transfer 819 | . . 108 . . 9 297 180 . 225 Siege Activations . | . . . . . . . . . . Robots Corrupted . | . . . . . . . . . . Combat Hostiles . | . . . . . . . . . . Parts Fried . | . . . . . . . . . . Impact Corruptions . | . . . . . . . . . . Robots Melted . | . . . . . . . . . . Combat Hostiles . | . . . . . . . . . . Parts Melted 2 | . . 1 . . . . . 1 . Heat Transferred 1507 | . . 1025 . . 75 . 37 370 . Parts Sabotaged . | . . . . . . . . . . Parts Stolen . | . . . . . . . . . . Parts Stripped . | . . . . . . . . . . Power Chain Reactions . | . . . . . . . . . . Alert | -11 -10 -10 -10 -9 -8 -8 -8 -8 -8 ------- Run | Yrd Mat Min Exi Min Mat Gar Mat Gar Mat Peak Influence 554 | . 20 282 . . 83 554 339 449 399 Initial 269 | . . 7 . . . 12 269 222 218 Average 192 | . 10 170 . . 57 240 227 314 224 Maximum Alert Level 2 | . . 1 . . . 2 1 2 1 Low Security (%) 52 | 100 100 54 . 100 100 42 29 . 47 Level 1 39 | . . 45 . . . 41 70 64 52 Level 2 7 | . . . . . . 15 . 35 . Level 3 . | . . . . . . . . . . Level 4 . | . . . . . . . . . . Level 5 . | . . . . . . . . . . High Security . | . . . . . . . . . . Max Security . | . . . . . . . . . . Squads Dispatched 8 | . . . . . 2 . 1 . 5 Investigation 4 | . . . . . 1 . . . 3 Extermination . | . . . . . . . . . . Reinforcement 4 | . . . . . 1 . 1 . 2 Assault . | . . . . . . . . . . Garrison . | . . . . . . . . . . Intercept . | . . . . . . . . . . Searches Triggered . | . . . . . . . . . . Construction Impeded . | . . . . . . . . . . Haulers Reinforced . | . . . . . . . . . . Active Scanning Responses . | . . . . . . . . . . Cargo Convoy Interrupts . | . . . . . . . . . . Stealth | -11 -10 -10 -10 -9 -8 -8 -8 -8 -8 --------- Run | Yrd Mat Min Exi Min Mat Gar Mat Gar Mat Distress Signals 1 | . . . . . 1 . . . . Communications Jammed . | . . . . . . . . . . Distress Signals . | . . . . . . . . . . Times Spotted 60 | . . 9 . . 7 9 10 7 18 Peak Tracking Total 8 | . . 3 . . 5 3 4 5 8 Tactical Retreats 4 | . . . . . 1 1 . 1 1 Traps | -11 -10 -10 -10 -9 -8 -8 -8 -8 -8 ------- Run | Yrd Mat Min Exi Min Mat Gar Mat Gar Mat Traps Triggered 8 | . . . . . . 5 . 2 1 Indirectly . | . . . . . . . . . . Trap Hack Attempts . | . . . . . . . . . . Triggered . | . . . . . . . . . . Disarmed . | . . . . . . . . . . Reprogrammed . | . . . . . . . . . . Reused . | . . . . . . . . . . Traps Extracted . | . . . . . . . . . . Installed . | . . . . . . . . . . Triggered . | . . . . . . . . . . Objects Rigged 9 | . . . . . . . . 3 6 Exploded 5 | . . . . . . . . 2 3 Machines | -11 -10 -10 -10 -9 -8 -8 -8 -8 -8 ---------- Run | Yrd Mat Min Exi Min Mat Gar Mat Gar Mat Machines Disabled 5 | . . . . . . 3 2 . . Max in Single Turn 2 | . . . . . . 1 2 . . Garrison Relay 5 | . . . . . . 3 . 2 . Machines Repaired . | . . . . . . . . . . Machines Dismantled 3 | . . . . . . . . 3 . Machines Sabotaged . | . . . . . . . . . . Overloaded Fab Kills . | . . . . . . . . . . Hacking | -11 -10 -10 -10 -9 -8 -8 -8 -8 -8 --------- Run | Yrd Mat Min Exi Min Mat Gar Mat Gar Mat Machines Accessed 18 | . 2 . 2 . 2 2 4 1 5 Terminals 14 | . 2 . . . 1 2 3 1 5 Fabricators . | . . . . . . . . . . Repair Stations . | . . . . . . . . . . Recycling Units . | . . . . . . . . . . Scanalyzers . | . . . . . . . . . . Garrison Access 2 | . . . . . 1 . 1 . . Total Hacks 43 | . 4 . 5 . 7 5 9 1 12 Successful 20 | . 3 . 5 . 2 1 2 1 6 Failed 23 | . 1 . . . 5 4 7 . 6 Catastrophic 4 | . . . . . 1 1 1 . 1 Database Lockouts . | . . . . . . . . . . Manual 19 | . 2 . 1 . 6 1 4 . 5 Terminals 35 | . 4 . . . 6 5 7 1 12 Fabricators . | . . . . . . . . . . Repair Stations . | . . . . . . . . . . Recycling Units . | . . . . . . . . . . Scanalyzers . | . . . . . . . . . . Garrison Access 3 | . . . . . 1 . 2 . . Terminal Hacks 17 | . 3 . 5 . 1 1 1 1 5 Record 4 | . . . 4 . . . . . . Part Schematic 2 | . . . . . 1 . . . 1 Robot Analysis 2 | . 2 . . . . . . . . Branch Access Points 1 | . 1 . . . . . . . . Emergency Access Points 2 | . . . . . . 1 . 1 . Terminal Index 1 | . . . . . . . . . 1 Unreport Threat 3 | . . . . . . . 1 . 2 Locate Traps 1 | . . . . . . . . . 1 Derelict Proto ID Bank 1 | . . . 1 . . . . . . Fabricator Hacks . | . . . . . . . . . . Repair Station Hacks . | . . . . . . . . . . Recycling Unit Hacks . | . . . . . . . . . . Scanalyzer . | . . . . . . . . . . Garrison Access Hacks 2 | . . . . . 1 . 1 . . Unlock Access 2 | . . . . . 1 . 1 . . Unauthorized Hacks 1 | . . . . . . . . . 1 Terminals 1 | . . . . . . . . . 1 Detonate 1 | . . . . . . . . . 1 Fabricators . | . . . . . . . . . . Repair Stations . | . . . . . . . . . . Recycling Units . | . . . . . . . . . . Scanalyzers . | . . . . . . . . . . Garrison Access . | . . . . . . . . . . Data Cores Recovered 1 | . . . . . . . 1 . . Used . | . . . . . . . . . . Hacking Detections 13 | . 2 . . . 1 2 3 . 5 Full Trace Events 5 | . . . . . 1 1 1 . 2 Feedback Events . | . . . . . . . . . . Feedback Blocked . | . . . . . . . . . . Robot Schematics Acquired . | . . . . . . . . . . Robots Built . | . . . . . . . . . . Authchips . | . . . . . . . . . . Time . | . . . . . . . . . . Total Robot Build Rating . | . . . . . . . . . . Part Schematics Acquired 2 | . . . . . 1 . . . 1 Parts Built . | . . . . . . . . . . Authchips . | . . . . . . . . . . Time . | . . . . . . . . . . Total Part Build Rating . | . . . . . . . . . . Parts Repaired . | . . . . . . . . . . Time . | . . . . . . . . . . Parts Recycled . | . . . . . . . . . . Recycled Matter . | . . . . . . . . . . Retrieved Matter . | . . . . . . . . . . Retrieved Components . | . . . . . . . . . . Parts Scanalyzed . | . . . . . . . . . . Part Schematics Acquired . | . . . . . . . . . . Parts Damaged . | . . . . . . . . . . Bothacking | -11 -10 -10 -10 -9 -8 -8 -8 -8 -8 ------------ Run | Yrd Mat Min Exi Min Mat Gar Mat Gar Mat Used RIF Installer . | . . . . . . . . . . Robots Hacked . | . . . . . . . . . . Non-combat . | . . . . . . . . . . Combat . | . . . . . . . . . . Robot Hacks Applied . | . . . . . . . . . . Relay Couplers Released 20 | . . . . . . 12 . 8 . Machine Destruction 20 | . . . . . . 12 . 8 . Fabnet Peak Effective % . | . . . . . . . . . . Robots Rewired . | . . . . . . . . . . Allies Hacked . | . . . . . . . . . . Hacks Repelled . | . . . . . . . . . . Allies | -11 -10 -10 -10 -9 -8 -8 -8 -8 -8 -------- Run | Yrd Mat Min Exi Min Mat Gar Mat Gar Mat Total Allies 3 | . . 1 . . . 2 . . . Largest Group 2 | . . 1 . . . 2 . . . Highest-Rated Group 40 | . . 31 . . . 40 . . . Highest-Rated Ally 31 | . . 31 . . . 20 . . . Total Orders . | . . . . . . . . . . Ally Attacks 5 | . . . . . . 5 . . . Total Damage 86 | . . . . . . 86 . . . Kills 2 | . . . . . . 2 . . . Allies Corrupted . | . . . . . . . . . . Allies Melted . | . . . . . . . . . . Intel | -11 -10 -10 -10 -9 -8 -8 -8 -8 -8 ------- Run | Yrd Mat Min Exi Min Mat Gar Mat Gar Mat Robot Analysis Total 2 | . 2 . . . . . . . . Derelict Logs Recovered 2 | . . 2 . . . . . . . Drone Launches . | . . . . . . . . . . Drone Recoveries . | . . . . . . . . . . Exploration | -11 -10 -10 -10 -9 -8 -8 -8 -8 -8 ------------- Run | Yrd Mat Min Exi Min Mat Gar Mat Gar Mat Turns Passed 3036 | 27 11 366 160 45 530 683 185 267 762 Spaces Moved 2544 | 40 21 311 302 86 112 820 209 248 395 Core 2544 | 40 21 311 302 86 112 820 209 248 395 Treads . | . . . . . . . . . . Legs . | . . . . . . . . . . Wheels . | . . . . . . . . . . Hover . | . . . . . . . . . . Flight . | . . . . . . . . . . Fastest Speed 50 | 50 50 50 50 50 50 50 50 50 50 Average Speed 50 | 50 50 50 50 50 50 50 50 50 50 Slowest Speed 100 | 50 50 50 50 50 50 50 50 50 100 Overloaded Moves . | . . . . . . . . . . Propulsion Burnouts . | . . . . . . . . . . Robots Hopped . | . . . . . . . . . . Cave-ins Triggered . | . . . . . . . . . . Exploration Rate (%) 36 | 4 7 63 69 30 11 83 21 40 37 Regions Visited 9 Branch Regions 3 Pre-discovered Areas 2 | . . 1 1 . . . . . . Known Exits Taken 3 | . 1 . . . 1 . 1 . . Unknown Exits Taken 4 | 1 . 1 1 1 . . . . . Scrap Searched 2 | . . 1 . 1 . . . . . Spaces Dug 2 | . . . . . . . 1 . 1 Terrain Destroyed 41 | . . . . . . . 2 17 22 Melee 2 | . . . . . . . 1 . 1 Projectile . | . . . . . . . . . . AOE 39 | . . . . . . . 1 17 21 Terrain Rammed . | . . . . . . . . . . Walls Destroyed . | . . . . . . . . . . Machines Disabled . | . . . . . . . . . . Actions | -11 -10 -10 -10 -9 -8 -8 -8 -8 -8 --------- Run | Yrd Mat Min Exi Min Mat Gar Mat Gar Mat Total 4050 | 45 20 460 311 87 580 1014 268 342 923 Wait 1144 | . . 108 . 2 464 61 27 12 470 Move 2537 | 39 20 310 301 85 112 819 209 247 395 Hop . | . . . . . . . . . . Pick Up 24 | 2 . 7 3 . . 1 3 4 4 Fast Attach 33 | 2 . 2 2 . 2 9 5 1 10 Attach 9 | 2 . . . . . . 2 4 1 Detach 6 | . . . . . . . . 5 1 Swap 12 | . . 1 . . . . 1 7 3 Drop 36 | . . 2 5 . . 8 7 3 11 Fire 80 | . . 30 . . 2 28 2 16 2 Melee 61 | . . . . . . 28 11 . 22 Ram . | . . . . . . . . . . Kick . | . . . . . . . . . . Crush . | . . . . . . . . . . Escape Stasis 90 | . . . . . . 60 . 30 . Rewire . | . . . . . . . . . . Trap 7 | . . . . . . . . 3 4 Miscellaneous 11 | . . . . . . . 1 10 . Route ------- -11/Scrapyard -10/Materials (discovered 2 exits: *Min x2) -10/Mines (discovered 2 exits: [*Mat] / *Exi) -10/Exiles -9/Mines -8/Materials -8/Garrison (discovered 4 exits: *Mat x4) -8/Materials (discovered 2 exits: [*Fac] / Gar) -8/Garrison -8/Materials History --------- Turn | Location | Event 9 | -11/Scrapyard | Discovered new exit (range 16) 28 | -11/Scrapyard | Entered Materials 34 | -10/Materials | Identified exit to Mines 39 | -10/Materials | Entered Mines 60 | -10/Mines | Discovered new exit (range 16) 66 | -10/Mines | Learned Materials trap positions 68 | -10/Mines | Joined a pair of Derelicts in attacking an 0b10 outpost 247 | -10/Mines | Learned location of Zion (-7) 308 | -10/Mines | Build established: Mutant 360 | -10/Mines | Escorted by a lone wolf Derelict 383 | -10/Mines | Received a Rocket Launcher from a helpful Derelict 399 | -10/Mines | Assembled infested the area 403 | -10/Mines | Deemed a non-threat by the Exiles lab entrance 403 | -10/Mines | Discovered new exit (range 5) 405 | -10/Mines | Entered Exiles 417 | -10/Exiles | Met 8R-AWN 444 | -10/Exiles | Met EX-HEX 463 | -10/Exiles | Met EX-DEC 483 | -10/Exiles | Met EX-BIN 490 | -10/Exiles | Aligned with FarCom system 491 | -10/Exiles | Given EX-Vault access code 503 | -10/Exiles | Opened EX-Vault 507 | -10/Exiles | Found PSU Rigger 512 | -10/Exiles | Found Potential Leg 514 | -10/Exiles | Found Potential Leg 526 | -10/Exiles | Warned to stay clear of 0b10 Research branches 560 | -10/Exiles | Discovered new exit (range 10) 565 | -10/Exiles | Stole two prototypes: Potential Leg, PSU Rigger 565 | -10/Exiles | Entered Mines 604 | -9/Mines | Discovered new exit (range 9) 610 | -9/Mines | Entered Materials 610 | -8/Materials | Evolved 4 slots: Utility x4 611 | -8/Materials | Loaded intel: 14 trap records 1140 | -8/Materials | Identified exit to Garrison 1140 | -8/Materials | Entered Garrison 1140 | -8/Garrison | Warlord forces raided the area 1176 | -8/Garrison | Triggered checkpoint 1180 | -8/Garrison | Triggered checkpoint 1232 | -8/Garrison | Triggered checkpoint 1274 | -8/Garrison | Discovered new exit (range 9) 1276 | -8/Garrison | Triggered checkpoint 1291 | -8/Garrison | Warlord forces retreated 1322 | -8/Garrison | Rescued a captive Derelict 1322 | -8/Garrison | Rescued a captive Derelict 1382 | -8/Garrison | Triggered checkpoint 1433 | -8/Garrison | Garrison Relay disabled 1449 | -8/Garrison | Discovered new exit (range 17) 1603 | -8/Garrison | Garrison Relay disabled 1627 | -8/Garrison | Discovered new exit (range 10) 1664 | -8/Garrison | Triggered checkpoint 1733 | -8/Garrison | Garrison Relay disabled 1820 | -8/Garrison | Discovered new exit (range 6) 1823 | -8/Garrison | Entered Materials 1864 | -8/Materials | Core integrity fell below 50% 1942 | -8/Materials | Discovered new exit (range 18) 2008 | -8/Materials | Identified exit to Garrison 2008 | -8/Materials | Entered Garrison 2066 | -8/Garrison | Triggered checkpoint 2083 | -8/Garrison | Garrison Relay disabled 2219 | -8/Garrison | Build established: Scavenger-Scout 2222 | -8/Garrison | Triggered checkpoint 2238 | -8/Garrison | Garrison Relay disabled 2252 | -8/Garrison | Discovered new exit (range 12) 2275 | -8/Garrison | Entered Materials 3029 | -8/Materials | Core integrity fell below 20% 3037 | -8/Materials | Destroyed by Y-45 Defender with Heavy Assault Rifle Last Messages --------------- 03011_ Connecting with Terminal... >>Trojan(Detonate) Trojan loaded successfully. Testing... Scanning machine control network... Found 2 applicable machines. RL46G999YK: Fusion Modulator UY1CK5JD3Q: Fusion Modulator Infected machine control systems. >>Alert(Purge) Purged threat record, alert level lowered. 03012_ Discarded Melee Analysis Suite. 03015_ Acquired Hacking Suite. 03017_ Dropped Imp. Medium Laser. 03018_ Acquired 19 matter. 03020_ Dropped Weight Redist. System. 03024_ Acquired System Shield. 03026_ Potential Leg severed. 03028_ Katana severed. 03032_ Carbon-fiber Leg destroyed. Map ----- +----------------------------------------------------+ | ????????????????????# = # ##########?????? | | ????????????????????########### + | | ?????????????????############## ##+#######?????? | | ?????????????????# +% #?? ??????????? | | ?????????????????# """ """ # #??? ????????? | | ?????????????????# """ """ # % #????? #???????? | | ?????????????????# """ """ # #??????#???????? | | ?????????????????# % # #??????????????? | | ?????????????????############## #??????????????? | | ??????????????????????????????# #??????????????? | | ??????????????????????????????# #??????????????? | | ??????????????????????????????# #??????????????? | | ???????????????????????######## #??????????????? | | ???????????????????????# # #??????????????? | | ???????????????????????# """ # #??????????????? | | ???????????????????????# """ + #??????????????? | | ???????????????????????# """ # #??????????????? | | ???????????????????????#= + #??????????????? | | ???????????????????????# = # #??????????????? | | ????????????????????########### #??????????????? | | ????????????????????# #???# #####+######???? | | ????????????????????# ##### | | ????????????????????# g #???????? | | ????????????????????# g##### #???????? | | ????????????????????# #???######## #???????? | | ????????????????????### @#???????????? #???????? | | ??????????????????????# Y#????????????? #???????? | | ??????????????????????# #??????????????#???????? | | ??????????????????????# #??????????????????????? | | ??????????????????????# #??????????????????????? | | ??????????????????????# #??????????????????????? | | ??????????????????????# #??????????????????????? | | ??????????????######### ##?????????????????????? | | ??????????????# #l #?????????????????????? | | ?????????????## "T" # g ###########???????????? | | ?????????????# ! ! / +[ T ggg #????????? | | ?????????????## =! /#Y ##########????????????? | | ??????????????#! ! # #?????????????????????? | | ??????????????# ! / #######?????????????????????? | | ??????????????########???????????????????????????? | | ?????????????????????????????????????????????????? | | ?????????????????????????????????????????????????? | | ?????????????????????????????????????????????????? | | | | | | | | | | | | | | | +----------------------------------------------------+ Best States ------------- Heat Dissipation 31 Energy Generation 18 Energy Capacity 250 Matter Stores 300 Matter Capacity 300 Sight Range 20 Robot Scan Range 15 Terrain Scan Density 110 Additional Mass Support 9 Corruption Block 8 Armor Coverage 150 Core Shielding 20 Evasion (%) 50 Targeting Accuracy 10 Melee Accuracy 10 Recoil Reduction 4 Offensive Hacking 20 Defensive Hacking 10 Item Schematics ----------------- Hacking Suite | -8/Materials | Hacked Adv. Weight Redist. System | -8/Materials | Hacked Robot Schematics ------------------ None Fabricated ------------ Nothing Alien Tech Used ----------------- None Achievements -------------- None Challenges ------------ None Game ------ Seed PiercingCannonBeamcaster Manual? 0 Play Time 00:31:50 Cumulative 695.1 hours Start 2024.04.10 @ 16:01:03 End 2024.04.10 @ 16:32:13 Sessions 1 Manual Loads 0 Difficulty Rogue Special Mode None Game No. 281 Rogue 253 Adventurer 3 Explorer 25 Win Type - Total 16 Types 10/3/1/1/0/1/0/0/0 Lore% 91 Gallery% 96 Achievement% 85 Wizard Run 0 Options --------- Layout 2 ASCII 0 Keyboard 0 Movement Numpad Keybinds 0 Fullscreen 2 Font 24/Smallcaps Map View 50x44 Zoom Use 0% Tactical HUD 1 Map Filters NONE Filters NONE Steam 1 RUN: 773cc7e6-62e9-4b5a-8a35-5e32fe1ec6fe